Department family,Entity,Date,Expense type,Expense area,Supplier,Transaction number,Amount,VAT registration number
Department for Business Energy and Industrial Strategy,Intellectual Property Office,28/10/2019,Travel & Subsistence,International Policy Directorate,Personal expenses,OS0000001078,544.91,Not Applicable
Department for Business Energy and Industrial Strategy,Intellectual Property Office,28/10/2019,Travel & Subsistence,Projects,Personal expenses,OS0000001075,548.58,Not Applicable
Department for Business Energy and Industrial Strategy,Intellectual Property Office,30/10/2019,Travel & Subsistence,Projects,Personal expenses,OS000001081,515.25,Not Applicable
Department for Business Energy and Industrial Strategy,Intellectual Property Office,22/10/2019,Travel & Subsistence,People Places & Serv Directorate,Personal expenses,UK000006544,13.98,Not Applicable
Department for Business Energy and Industrial Strategy,Intellectual Property Office,22/10/2019,Miscellaneous Expenses General,People Places & Serv Directorate,Personal expenses,UK000006544,676.01,Not Applicable
Department for Business Energy and Industrial Strategy,Intellectual Property Office,02/10/2019,Travel & Subsistence,Innovation Directorate,Personal expenses,UK000006622,710.36,Not Applicable
Department for Business Energy and Industrial Strategy,Intellectual Property Office,21/10/2019,Travel & Subsistence,Innovation Directorate,Personal expenses,UK000006689,940.00,Not Applicable
Department for Business Energy and Industrial Strategy,Intellectual Property Office,30/10/2019,Travel & Subsistence,International Policy Directorate,Personal expenses,OS000001079,647.22,Not Applicable
Department for Business Energy and Industrial Strategy,Intellectual Property Office,02/10/2019,Pay Costs,Patent Directorate,Acorn Recruitment Ltd,924818,998.12,Not Applicable
Department for Business Energy and Industrial Strategy,Intellectual Property Office,09/10/2019,Pay Costs,Patent Directorate,Acorn Recruitment Ltd,925581,664.67,Not Applicable
Department for Business Energy and Industrial Strategy,Intellectual Property Office,30/10/2019,Pay Costs,Patent Directorate,Acorn Recruitment Ltd,927896,664.67,Not Applicable
Department for Business Energy and Industrial Strategy,Intellectual Property Office,10/10/2019,Information Technology,IT Directorate,Automated Intelligence Ltd.,AIL20025,"46,494.00",Not Applicable
Department for Business Energy and Industrial Strategy,Intellectual Property Office,07/10/2019,Office Supplies,People Places & Serv Directorate,Banner Group Limited,4291949,975.25,Not Applicable
Department for Business Energy and Industrial Strategy,Intellectual Property Office,08/10/2019,Telecoms,IT Directorate,British  Telecom,GP00002104M074,"3,056.23",Not Applicable
Department for Business Energy and Industrial Strategy,Intellectual Property Office,07/10/2019,Telecoms,IT Directorate,British  Telecom,M21301,"1,837.02",Not Applicable
Department for Business Energy and Industrial Strategy,Intellectual Property Office,30/10/2019,Telecoms,IT Directorate,British  Telecom,Q002GO20OCT19,"2,884.80",Not Applicable
Department for Business Energy and Industrial Strategy,Intellectual Property Office,25/10/2019,Telecoms,IT Directorate,British  Telecom,Q004RS20OCT19,"1,476.00",Not Applicable
Department for Business Energy and Industrial Strategy,Intellectual Property Office,25/10/2019,Telecoms,Projects,British  Telecom,Q008EL,"1,890.00",Not Applicable
Department for Business Energy and Industrial Strategy,Intellectual Property Office,21/10/2019,Telecoms,IT Directorate,British  Telecom,VP02239170M21401,"1,960.87",Not Applicable
Department for Business Energy and Industrial Strategy,Intellectual Property Office,03/10/2019,Office Supplies,Patent Directorate,British Library,7000055913,"2,340.62",Not Applicable
Department for Business Energy and Industrial Strategy,Intellectual Property Office,18/10/2019,Staff Costs,People Places & Serv Directorate,British Red Cross,N1306966,"1,004.40",Not Applicable
Department for Business Energy and Industrial Strategy,Intellectual Property Office,18/10/2019,Staff Costs,People Places & Serv Directorate,British Red Cross,N1306972,669.60,Not Applicable
Department for Business Energy and Industrial Strategy,Intellectual Property Office,30/10/2019,Computer Contracts,People Places & Serv Directorate,British Standards Institution BSI,95372097,"1,561.20",Not Applicable
Department for Business Energy and Industrial Strategy,Intellectual Property Office,30/10/2019,Staff Costs,People Places & Serv Directorate,Cardiff University,1307017,"1,000.00",Not Applicable
Department for Business Energy and Industrial Strategy,Intellectual Property Office,18/10/2019,Supporting UK Business,Copyright and Enforcement Directorate,City of London Police,4258151,"495,125.30",Not Applicable
Department for Business Energy and Industrial Strategy,Intellectual Property Office,17/10/2019,Supporting UK Business,Copyright and Enforcement Directorate,City of London Police,4258158,"477,913.79",Not Applicable
Department for Business Energy and Industrial Strategy,Intellectual Property Office,17/10/2019,Staff Costs,People Places & Serv Directorate,Computeraid Ltd,22105,894.00,Not Applicable
Department for Business Energy and Industrial Strategy,Intellectual Property Office,16/10/2019,Accommodation,People Places & Serv Directorate,Corona Energy,14391176,"1,281.54",Not Applicable
Department for Business Energy and Industrial Strategy,Intellectual Property Office,08/10/2019,Supporting UK Business,Innovation Directorate,Creation IP Ltd,IV4908,"2,500.00",Not Applicable
Department for Business Energy and Industrial Strategy,Intellectual Property Office,15/10/2019,Supporting UK Business,Innovation Directorate,Creation IP Ltd,IV4917,"2,500.00",Not Applicable
Department for Business Energy and Industrial Strategy,Intellectual Property Office,29/10/2019,Postage & Delivery Costs,People Places & Serv Directorate,DHL International (UK) Ltd,BRS2924607,"2,557.46",Not Applicable
Department for Business Energy and Industrial Strategy,Intellectual Property Office,03/10/2019,Postage & Delivery Costs,People Places & Serv Directorate,DHL International (UK) Ltd,BRS2946129,"2,417.12",Not Applicable
Department for Business Energy and Industrial Strategy,Intellectual Property Office,10/10/2019,Postage & Delivery Costs,People Places & Serv Directorate,DHL International (UK) Ltd,BRS2970259,789.76,Not Applicable
Department for Business Energy and Industrial Strategy,Intellectual Property Office,18/10/2019,Postage & Delivery Costs,People Places & Serv Directorate,DHL International (UK) Ltd,BRS2989171,962.76,Not Applicable
Department for Business Energy and Industrial Strategy,Intellectual Property Office,23/10/2019,Postage & Delivery Costs,People Places & Serv Directorate,DHL International (UK) Ltd,BRS3007472,"2,431.19",Not Applicable
Department for Business Energy and Industrial Strategy,Intellectual Property Office,30/10/2019,Postage & Delivery Costs,People Places & Serv Directorate,DHL International (UK) Ltd,BRS3027166,"2,962.40",Not Applicable
Department for Business Energy and Industrial Strategy,Intellectual Property Office,30/10/2019,Staff Costs,IT Directorate,GovNet Communications,161540,534.00,Not Applicable
Department for Business Energy and Industrial Strategy,Intellectual Property Office,30/10/2019,Staff Costs,IT Directorate,GovNet Communications,0000161540CN,-534.00,Not Applicable
Department for Business Energy and Industrial Strategy,Intellectual Property Office,02/10/2019,Accommodation,People Places & Serv Directorate,Healthy Workstations Ltd,34371,945.53,Not Applicable
Department for Business Energy and Industrial Strategy,Intellectual Property Office,24/10/2019,Miscellaneous Expenses General,IT Directorate,HFX Ltd,29447,"1,080.00",Not Applicable
Department for Business Energy and Industrial Strategy,Intellectual Property Office,23/10/2019,Information Technology,IT Directorate,HFX Ltd,29837,"24,716.77",Not Applicable
Department for Business Energy and Industrial Strategy,Intellectual Property Office,15/10/2019,Accommodation,People Places & Serv Directorate,HFX Ltd,29871,"1,020.00",Not Applicable
Department for Business Energy and Industrial Strategy,Intellectual Property Office,31/10/2019,Information Technology,IT Directorate,HFX Ltd,29924,"1,077.30",Not Applicable
Department for Business Energy and Industrial Strategy,Intellectual Property Office,15/10/2019,Miscellaneous Expenses General,Innovation Directorate,Holiday Inn Express,2019021522,"2,749.50",Not Applicable
Department for Business Energy and Industrial Strategy,Intellectual Property Office,16/10/2019,Pay Costs,Projects,LA International Computer Consulta,LA568144,"2,248.52",Not Applicable
Department for Business Energy and Industrial Strategy,Intellectual Property Office,17/10/2019,Pay Costs,Projects,LA International Computer Consulta,LA568967,"2,805.28",Not Applicable
Department for Business Energy and Industrial Strategy,Intellectual Property Office,11/10/2019,Pay Costs,IT Directorate,LA International Computer Consulta,LA568968,"6,293.76",Not Applicable
Department for Business Energy and Industrial Strategy,Intellectual Property Office,18/10/2019,Pay Costs,Projects,LA International Computer Consulta,LA569891,"2,307.60",Not Applicable
Department for Business Energy and Industrial Strategy,Intellectual Property Office,17/10/2019,Pay Costs,IT Directorate,LA International Computer Consulta,LA569892,"3,146.88",Not Applicable
Department for Business Energy and Industrial Strategy,Intellectual Property Office,24/10/2019,Pay Costs,Projects,LA International Computer Consulta,LA570624,"2,220.22",Not Applicable
Department for Business Energy and Industrial Strategy,Intellectual Property Office,24/10/2019,Pay Costs,IT Directorate,LA International Computer Consulta,LA570625,"2,989.54",Not Applicable
Department for Business Energy and Industrial Strategy,Intellectual Property Office,08/10/2019,Travel & Subsistence,People Places & Serv Directorate,Zenith,196180,"1,033.20",Not Applicable
Department for Business Energy and Industrial Strategy,Intellectual Property Office,31/10/2019,Travel & Subsistence,People Places & Serv Directorate,Zenith,202314,"1,033.20",Not Applicable
Department for Business Energy and Industrial Strategy,Intellectual Property Office,02/10/2019,Legal & Hearings,Patent Directorate,Marten Walsh Cherer Ltd,106434,"1,829.47",Not Applicable
Department for Business Energy and Industrial Strategy,Intellectual Property Office,02/10/2019,Legal & Hearings,Patent Directorate,Marten Walsh Cherer Ltd,106435,"2,120.10",Not Applicable
Department for Business Energy and Industrial Strategy,Intellectual Property Office,18/10/2019,Postage & Delivery Costs,People Places & Serv Directorate,Neopost Finance Ltd,NE9000335-171019,"10,000.00",Not Applicable
Department for Business Energy and Industrial Strategy,Intellectual Property Office,23/10/2019,Accommodation,People Places & Serv Directorate,Office for National Statistics,2389045,"335,992.86",Not Applicable
Department for Business Energy and Industrial Strategy,Intellectual Property Office,09/10/2019,Pay Costs,People Places & Serv Directorate,C2W Support,34289,"1,542.92",Not Applicable
Department for Business Energy and Industrial Strategy,Intellectual Property Office,18/10/2019,Postage & Delivery Costs,People Places & Serv Directorate,Parcelforce Worldwide,9059724172,946.61,Not Applicable
Department for Business Energy and Industrial Strategy,Intellectual Property Office,24/10/2019,Information Technology,IT Directorate,Phoenix Software Ltd,OP/I852868,"1,911.01",Not Applicable
Department for Business Energy and Industrial Strategy,Intellectual Property Office,10/10/2019,Information Technology,IT Directorate,QA Ltd,QACI005050,"1,044.00",Not Applicable
Department for Business Energy and Industrial Strategy,Intellectual Property Office,22/10/2019,Information Technology,IT Directorate,QA Ltd,QACI005081,"21,924.00",Not Applicable
Department for Business Energy and Industrial Strategy,Intellectual Property Office,16/10/2019,Information Technology,IT Directorate,QA Ltd,QACI005111,"21,924.00",Not Applicable
Department for Business Energy and Industrial Strategy,Intellectual Property Office,10/10/2019,Postage & Delivery Costs,People Places & Serv Directorate,Royal Mail,9059644973,"1,795.65",Not Applicable
Department for Business Energy and Industrial Strategy,Intellectual Property Office,24/10/2019,Postage & Delivery Costs,People Places & Serv Directorate,Royal Mail,9059719524,"2,037.92",Not Applicable
Department for Business Energy and Industrial Strategy,Intellectual Property Office,29/10/2019,Postage & Delivery Costs,People Places & Serv Directorate,Royal Mail,9059774305,"1,191.11",Not Applicable
Department for Business Energy and Industrial Strategy,Intellectual Property Office,02/10/2019,Accommodation,People Places & Serv Directorate,Senator International Ltd,S01550900,668.96,Not Applicable
Department for Business Energy and Industrial Strategy,Intellectual Property Office,23/10/2019,Accommodation,People Places & Serv Directorate,Senator International Ltd,S01550901,703.64,Not Applicable
Department for Business Energy and Industrial Strategy,Intellectual Property Office,16/10/2019,Accommodation,People Places & Serv Directorate,Senator International Ltd,S01552171,703.12,Not Applicable
Department for Business Energy and Industrial Strategy,Intellectual Property Office,16/10/2019,Accommodation,People Places & Serv Directorate,Senator International Ltd,S01552172,692.94,Not Applicable
Department for Business Energy and Industrial Strategy,Intellectual Property Office,17/10/2019,Accommodation,People Places & Serv Directorate,Senator International Ltd,S01556535,"4,394.16",Not Applicable
Department for Business Energy and Industrial Strategy,Intellectual Property Office,24/10/2019,Accommodation,People Places & Serv Directorate,Senator International Ltd,S01556536,504.74,Not Applicable
Department for Business Energy and Industrial Strategy,Intellectual Property Office,04/10/2019,Information Technology,IT Directorate,Specialist Computer Centres Plc,OP/M650070,"18,622.56",Not Applicable
Department for Business Energy and Industrial Strategy,Intellectual Property Office,04/10/2019,Information Technology,IT Directorate,Specialist Computer Centres Plc,OP/M650071,"3,503.47",Not Applicable
Department for Business Energy and Industrial Strategy,Intellectual Property Office,04/10/2019,Information Technology,IT Directorate,Specialist Computer Centres Plc,OP/M650072,"3,544.63",Not Applicable
Department for Business Energy and Industrial Strategy,Intellectual Property Office,04/10/2019,Information Technology,IT Directorate,Specialist Computer Centres Plc,OP/M650073,"11,224.85",Not Applicable
Department for Business Energy and Industrial Strategy,Intellectual Property Office,04/10/2019,Information Technology,IT Directorate,Specialist Computer Centres Plc,OP/M650074,"2,439.76",Not Applicable
Department for Business Energy and Industrial Strategy,Intellectual Property Office,04/10/2019,Information Technology,IT Directorate,Specialist Computer Centres Plc,OP/M650075,"2,035.13",Not Applicable
Department for Business Energy and Industrial Strategy,Intellectual Property Office,04/10/2019,Information Technology,IT Directorate,Specialist Computer Centres Plc,OP/M650076,"1,684.45",Not Applicable
Department for Business Energy and Industrial Strategy,Intellectual Property Office,07/10/2019,Information Technology,IT Directorate,Specialist Computer Centres Plc,OP/M653217,"17,200.16",Not Applicable
Department for Business Energy and Industrial Strategy,Intellectual Property Office,10/10/2019,Information Technology,IT Directorate,Specialist Computer Centres Plc,OP/M655399,"1,071.54",Not Applicable
Department for Business Energy and Industrial Strategy,Intellectual Property Office,16/10/2019,Information Technology,IT Directorate,Specialist Computer Centres Plc,OP/M658033,"2,204.06",Not Applicable
Department for Business Energy and Industrial Strategy,Intellectual Property Office,25/10/2019,Information Technology,IT Directorate,Specialist Computer Centres Plc,OP/M659415,"18,622.56",Not Applicable
Department for Business Energy and Industrial Strategy,Intellectual Property Office,25/10/2019,Information Technology,IT Directorate,Specialist Computer Centres Plc,OP/M659416,"3,503.47",Not Applicable
Department for Business Energy and Industrial Strategy,Intellectual Property Office,25/10/2019,Information Technology,IT Directorate,Specialist Computer Centres Plc,OP/M659417,"3,544.66",Not Applicable
Department for Business Energy and Industrial Strategy,Intellectual Property Office,25/10/2019,Information Technology,IT Directorate,Specialist Computer Centres Plc,OP/M659418,"11,224.79",Not Applicable
Department for Business Energy and Industrial Strategy,Intellectual Property Office,24/10/2019,Information Technology,IT Directorate,Specialist Computer Centres Plc,OP/M659419,"1,970.03",Not Applicable
Department for Business Energy and Industrial Strategy,Intellectual Property Office,24/10/2019,Information Technology,IT Directorate,Specialist Computer Centres Plc,OP/M659420,"2,439.94",Not Applicable
Department for Business Energy and Industrial Strategy,Intellectual Property Office,25/10/2019,Information Technology,IT Directorate,Specialist Computer Centres Plc,OP/M659421,"1,684.45",Not Applicable
Department for Business Energy and Industrial Strategy,Intellectual Property Office,25/10/2019,Information Technology,IT Directorate,Specialist Computer Centres Plc,OP/M659424,"4,560.64",Not Applicable
Department for Business Energy and Industrial Strategy,Intellectual Property Office,28/10/2019,Information Technology,IT Directorate,Specialist Computer Centres Plc,OP/M659425,555.84,Not Applicable
Department for Business Energy and Industrial Strategy,Intellectual Property Office,28/10/2019,Information Technology,IT Directorate,Specialist Computer Centres Plc,OP/M659426,"2,026.92",Not Applicable
Department for Business Energy and Industrial Strategy,Intellectual Property Office,23/10/2019,Information Technology,IT Directorate,Specialist Computer Centres Plc,OP/M661465,587.04,Not Applicable
Department for Business Energy and Industrial Strategy,Intellectual Property Office,31/10/2019,Information Technology,Projects,Specialist Computer Centres Plc,OP/M665469,"2,098.37",Not Applicable
Department for Business Energy and Industrial Strategy,Intellectual Property Office,01/10/2019,Accommodation,People Places & Serv Directorate,Total Security Protection Ltd,203733,676.72,Not Applicable
Department for Business Energy and Industrial Strategy,Intellectual Property Office,17/10/2019,Information Technology,IT Directorate,Trustmarque Solutions Ltd,2290404,"49,764.72",Not Applicable
Department for Business Energy and Industrial Strategy,Intellectual Property Office,29/10/2019,Office Machinery,People Places & Serv Directorate,Xerox (UK) Ltd,1609650628,739.20,Not Applicable
Department for Business Energy and Industrial Strategy,Intellectual Property Office,02/10/2019,Marketing & Publicity,Innovation Directorate,Aardman Animations Ltd,38257,"39,000.00",Not Applicable
Department for Business Energy and Industrial Strategy,Intellectual Property Office,04/10/2019,Office Supplies,People Places & Serv Directorate,Antalis Limited,8856388,"8,480.84",Not Applicable
Department for Business Energy and Industrial Strategy,Intellectual Property Office,04/10/2019,Office Supplies,People Places & Serv Directorate,Antalis Limited,8856388,"1,766.74",Not Applicable
Department for Business Energy and Industrial Strategy,Intellectual Property Office,24/10/2019,Information Technology,People Places & Serv Directorate,CDW Limited,PSINV02576667,"11,871.02",Not Applicable
Department for Business Energy and Industrial Strategy,Intellectual Property Office,22/10/2019,Supporting UK Business,Innovation Directorate,Nash Matthews,84367,"2,499.60",Not Applicable
Department for Business Energy and Industrial Strategy,Intellectual Property Office,22/10/2019,Supporting UK Business,Innovation Directorate,Nash Matthews,84397,"2,499.90",Not Applicable
Department for Business Energy and Industrial Strategy,Intellectual Property Office,17/10/2019,Supporting UK Business,Innovation Directorate,Swindell & Pearson Ltd,SIN110204,"2,500.00",Not Applicable
Department for Business Energy and Industrial Strategy,Intellectual Property Office,25/10/2019,Supporting UK Business,International Policy Directorate,FOREIGN & COMMONWEALTH OFFICE,1114795,"7,277.98",Not Applicable
Department for Business Energy and Industrial Strategy,Intellectual Property Office,18/10/2019,Supporting UK Business,International Policy Directorate,FOREIGN & COMMONWEALTH OFFICE,1115419,"21,096.49",Not Applicable
Department for Business Energy and Industrial Strategy,Intellectual Property Office,18/10/2019,Supporting UK Business,International Policy Directorate,FOREIGN & COMMONWEALTH OFFICE,1115586,"4,919.43",Not Applicable
Department for Business Energy and Industrial Strategy,Intellectual Property Office,11/10/2019,Supporting UK Business,International Policy Directorate,FOREIGN & COMMONWEALTH OFFICE,1116022,"5,125.00",Not Applicable
Department for Business Energy and Industrial Strategy,Intellectual Property Office,11/10/2019,Supporting UK Business,International Policy Directorate,FOREIGN & COMMONWEALTH OFFICE,1116092,"13,900.23",Not Applicable
Department for Business Energy and Industrial Strategy,Intellectual Property Office,18/10/2019,Supporting UK Business,International Policy Directorate,FOREIGN & COMMONWEALTH OFFICE,1116296,"1,940.90",Not Applicable
Department for Business Energy and Industrial Strategy,Intellectual Property Office,22/10/2019,Supporting UK Business,International Policy Directorate,FOREIGN & COMMONWEALTH OFFICE,1116499,"3,872.81",Not Applicable
Department for Business Energy and Industrial Strategy,Intellectual Property Office,16/10/2019,Pay Costs,People Places & Serv Directorate,HM REVENUE & CUSTOMS,XK0000100181056A,"37,116.11",Not Applicable
Department for Business Energy and Industrial Strategy,Intellectual Property Office,16/10/2019,Legal & Hearings,Copyright and Enforcement Directorate,HM REVENUE & CUSTOMS,XS006767122566,94.78,Not Applicable
Department for Business Energy and Industrial Strategy,Intellectual Property Office,16/10/2019,Miscellaneous Expenses General,People Places & Serv Directorate,HM REVENUE & CUSTOMS,XS006767122566,"4,857.77",Not Applicable
Department for Business Energy and Industrial Strategy,Intellectual Property Office,15/10/2019,Misc Expenses Finance,Finance Directorate,NATIONAL AUDIT OFFICE,SIN001930,"54,700.00",Not Applicable
Department for Business Energy and Industrial Strategy,Intellectual Property Office,30/10/2019,Information Technology,Projects,Advanced Business Solutions,ARBK/99051909,"6,009.60",Not Applicable
Department for Business Energy and Industrial Strategy,Intellectual Property Office,31/10/2019,Information Technology,Projects,Advanced Business Solutions,ARBK/99052051,751.19,Not Applicable
Department for Business Energy and Industrial Strategy,Intellectual Property Office,30/10/2019,Information Technology,Projects,Advanced Business Solutions,ARBK/99052053,"10,516.80",Not Applicable
Department for Business Energy and Industrial Strategy,Intellectual Property Office,22/10/2019,Postage & Delivery Costs,People Places & Serv Directorate,RICO LOGISTICS LTD,SINRLLFS00215770,520.58,Not Applicable
Department for Business Energy and Industrial Strategy,Intellectual Property Office,15/10/2019,Supporting UK Business,Innovation Directorate,LAWRIE INTELLECTUAL PROPERTY,115079,"2,500.00",Not Applicable
Department for Business Energy and Industrial Strategy,Intellectual Property Office,17/10/2019,Supporting UK Business,Innovation Directorate,LAWRIE INTELLECTUAL PROPERTY,115393,"2,500.00",Not Applicable
Department for Business Energy and Industrial Strategy,Intellectual Property Office,02/10/2019,Supporting UK Business,Innovation Directorate,INNGOT LTD,Q1909/2,"2,500.00",Not Applicable
Department for Business Energy and Industrial Strategy,Intellectual Property Office,15/10/2019,Supporting UK Business,Innovation Directorate,INNGOT LTD,Q1909/3,"2,500.00",Not Applicable
Department for Business Energy and Industrial Strategy,Intellectual Property Office,22/10/2019,Miscellaneous Expenses General,Innovation Directorate,INNGOT LTD,Q1909/4,"3,096.00",Not Applicable
Department for Business Energy and Industrial Strategy,Intellectual Property Office,29/10/2019,Supporting UK Business,Innovation Directorate,CAMERON INTELLECTUAL PROPERTY LTD,4224/19,"2,500.00",Not Applicable
Department for Business Energy and Industrial Strategy,Intellectual Property Office,03/10/2019,Pay Costs,Finance Directorate,Accountancy Recruitment Wales,100670,901.00,Not Applicable
Department for Business Energy and Industrial Strategy,Intellectual Property Office,03/10/2019,Pay Costs,Finance Directorate,Accountancy Recruitment Wales,100671,"1,945.94",Not Applicable
Department for Business Energy and Industrial Strategy,Intellectual Property Office,03/10/2019,Pay Costs,Finance Directorate,Accountancy Recruitment Wales,100672,"2,013.98",Not Applicable
Department for Business Energy and Industrial Strategy,Intellectual Property Office,03/10/2019,Pay Costs,Finance Directorate,Accountancy Recruitment Wales,100673,755.16,Not Applicable
Department for Business Energy and Industrial Strategy,Intellectual Property Office,09/10/2019,Pay Costs,Finance Directorate,Accountancy Recruitment Wales,100680,841.46,Not Applicable
Department for Business Energy and Industrial Strategy,Intellectual Property Office,09/10/2019,Pay Costs,Finance Directorate,Accountancy Recruitment Wales,100681,958.09,Not Applicable
Department for Business Energy and Industrial Strategy,Intellectual Property Office,18/10/2019,Pay Costs,Finance Directorate,Accountancy Recruitment Wales,100687,814.50,Not Applicable
Department for Business Energy and Industrial Strategy,Intellectual Property Office,23/10/2019,Pay Costs,Finance Directorate,Accountancy Recruitment Wales,100693,852.25,Not Applicable
Department for Business Energy and Industrial Strategy,Intellectual Property Office,30/10/2019,Pay Costs,Finance Directorate,Accountancy Recruitment Wales,100699,825.29,Not Applicable
Department for Business Energy and Industrial Strategy,Intellectual Property Office,30/10/2019,Pay Costs,Finance Directorate,Accountancy Recruitment Wales,100700,888.30,Not Applicable
Department for Business Energy and Industrial Strategy,Intellectual Property Office,11/10/2019,Pay Costs,Finance Directorate,Accountancy Recruitment Wales,703634718,"10,118.88",Not Applicable
Department for Business Energy and Industrial Strategy,Intellectual Property Office,11/10/2019,Pay Costs,Finance Directorate,Accountancy Recruitment Wales,703634719,"10,118.88",Not Applicable
Department for Business Energy and Industrial Strategy,Intellectual Property Office,07/10/2019,Postage & Delivery Costs,People Places & Serv Directorate,CitySprint (UK) Ltd,3141574,"7,405.31",Not Applicable
Department for Business Energy and Industrial Strategy,Intellectual Property Office,24/10/2019,Staff Costs,People Places & Serv Directorate,Chartered Institute of Personnel and Dev,ARINV/10000947,900.00,Not Applicable
Department for Business Energy and Industrial Strategy,Intellectual Property Office,02/10/2019,Accommodation,People Places & Serv Directorate,EDF ENERGY,6397344,"1,177.63",Not Applicable
Department for Business Energy and Industrial Strategy,Intellectual Property Office,02/10/2019,Accommodation,People Places & Serv Directorate,EDF ENERGY,6398524,"29,501.41",Not Applicable
Department for Business Energy and Industrial Strategy,Intellectual Property Office,16/10/2019,Accommodation,People Places & Serv Directorate,EDF ENERGY,6541165,"1,137.05",Not Applicable
Department for Business Energy and Industrial Strategy,Intellectual Property Office,16/10/2019,Accommodation,People Places & Serv Directorate,EDF ENERGY,6542631,"29,329.39",Not Applicable
Department for Business Energy and Industrial Strategy,Intellectual Property Office,11/10/2019,Information Technology,IT Directorate,Xuper Limited,110092,"1,404.00",Not Applicable
Department for Business Energy and Industrial Strategy,Intellectual Property Office,03/10/2019,Telecoms,IT Directorate,Xuper Limited,110570,"3,619.20",Not Applicable
Department for Business Energy and Industrial Strategy,Intellectual Property Office,15/10/2019,Staff Costs,People Places & Serv Directorate,Sodexo Motivation Solutions UK Ltd,3598428,"7,646.09",Not Applicable
Department for Business Energy and Industrial Strategy,Intellectual Property Office,15/10/2019,Staff Costs,People Places & Serv Directorate,Sodexo Motivation Solutions UK Ltd,3598462,"9,572.60",Not Applicable
Department for Business Energy and Industrial Strategy,Intellectual Property Office,15/10/2019,Supporting UK Business,Innovation Directorate,Lean IP,INV2281,"2,500.00",Not Applicable
Department for Business Energy and Industrial Strategy,Intellectual Property Office,08/10/2019,Legal & Hearings,Patent Directorate,Government Legal Department,472732,"2,260.34",Not Applicable
Department for Business Energy and Industrial Strategy,Intellectual Property Office,03/10/2019,Supporting UK Business,Innovation Directorate,Thorntons,1009562,"2,500.00",Not Applicable
Department for Business Energy and Industrial Strategy,Intellectual Property Office,24/10/2019,Telecoms,IT Directorate,Personal expenses,UK10/092019/7564,"3,322.08",Not Applicable
Department for Business Energy and Industrial Strategy,Intellectual Property Office,29/10/2019,Supporting UK Business,Innovation Directorate,MacRoberts LLP,1/19/7884,"2,500.00",Not Applicable
Department for Business Energy and Industrial Strategy,Intellectual Property Office,28/10/2019,Miscellaneous Expenses General,Trade Mark Directorate,FCO Services,6071895,675.00,Not Applicable
Department for Business Energy and Industrial Strategy,Intellectual Property Office,29/10/2019,Supporting UK Business,Innovation Directorate,Murgitroyd & Company Ltd,31931A-19,"2,500.00",Not Applicable
Department for Business Energy and Industrial Strategy,Intellectual Property Office,04/10/2019,Staff Costs,Copyright and Enforcement Directorate,The Clive Davis Partnership Ltd.,NOCDSC/3113,"1,440.00",Not Applicable
Department for Business Energy and Industrial Strategy,Intellectual Property Office,01/10/2019,Miscellaneous Expenses General,Projects,Robin Jacob,UPC-SEP19,"3,140.19",Not Applicable
Department for Business Energy and Industrial Strategy,Intellectual Property Office,29/10/2019,International Payments,Copyright and Enforcement Directorate,British Copyright Council,190741,"12,000.00",Not Applicable
Department for Business Energy and Industrial Strategy,Intellectual Property Office,31/10/2019,Information Technology,Patent Directorate,European Patent Office,40293277,"36,845.24",Not Applicable
Department for Business Energy and Industrial Strategy,Intellectual Property Office,31/10/2019,Information Technology,Patent Directorate,European Patent Office,40293641,"126,796.95",Not Applicable
Department for Business Energy and Industrial Strategy,Intellectual Property Office,31/10/2019,Miscellaneous Expenses General,Projects,Sword SA,SIP-EUA-F1910260,"2,380.50",Not Applicable
Department for Business Energy and Industrial Strategy,Intellectual Property Office,03/10/2019,Supporting UK Business,Innovation Directorate,Ancient Hume Ltd,4949,"2,500.00",Not Applicable
Department for Business Energy and Industrial Strategy,Intellectual Property Office,17/10/2019,Supporting UK Business,Innovation Directorate,Stannard & Stannard,SS00700,"2,500.00",Not Applicable
Department for Business Energy and Industrial Strategy,Intellectual Property Office,03/10/2019,Information Technology,Patent Directorate,Royal Society of Chemistry,RSC000025231,"26,700.00",Not Applicable
Department for Business Energy and Industrial Strategy,Intellectual Property Office,17/10/2019,Miscellaneous Expenses General,People Places & Serv Directorate,Insight Health Screening,11308,"1,780.00",Not Applicable
Department for Business Energy and Industrial Strategy,Intellectual Property Office,16/10/2019,Miscellaneous Expenses General,People Places & Serv Directorate,Insight Health Screening,11359,"1,275.00",Not Applicable
Department for Business Energy and Industrial Strategy,Intellectual Property Office,24/10/2019,Accommodation,People Places & Serv Directorate,SIG TRADING LTD,7.0336E+11,"4,898.25",Not Applicable
Department for Business Energy and Industrial Strategy,Intellectual Property Office,29/10/2019,Supporting UK Business,Innovation Directorate,Scintilla,INV-01949,"2,500.00",Not Applicable
Department for Business Energy and Industrial Strategy,Intellectual Property Office,08/10/2019,Supporting UK Business,Innovation Directorate,Scintilla,INV-01953,"2,500.00",Not Applicable
Department for Business Energy and Industrial Strategy,Intellectual Property Office,30/10/2019,Information Technology,Patent Directorate,Credo Reference Limited,9848,"2,331.60",Not Applicable
Department for Business Energy and Industrial Strategy,Intellectual Property Office,29/10/2019,Staff Costs,IT Directorate,Assist Knowledge Development Ltd,5075,"10,434.00",Not Applicable
Department for Business Energy and Industrial Strategy,Intellectual Property Office,03/10/2019,Information Technology,IT Directorate,Snowbound Software Corporation.,2019-345,"1,321.02",Not Applicable
Department for Business Energy and Industrial Strategy,Intellectual Property Office,16/10/2019,Office Machinery,People Places & Serv Directorate,Siemens Financial Services Limited,244/20/0006699,"2,962.80",Not Applicable
Department for Business Energy and Industrial Strategy,Intellectual Property Office,25/10/2019,Information Technology,IT Directorate,Ergo Computing,SIN1909EC08981,"10,291.38",Not Applicable
Department for Business Energy and Industrial Strategy,Intellectual Property Office,14/10/2019,Marketing & Publicity,Innovation Directorate,Upper Street Events,87775,"3,283.20",Not Applicable
Department for Business Energy and Industrial Strategy,Intellectual Property Office,22/10/2019,Staff Costs,Patent Directorate,Sequence of Events Ltd,REF-200371-NNI,"1,288.80",Not Applicable
Department for Business Energy and Industrial Strategy,Intellectual Property Office,08/10/2019,Information Technology,Patent Directorate,Society of Exploration Geophysicis,2100502217,"4,891.48",Not Applicable
Department for Business Energy and Industrial Strategy,Intellectual Property Office,17/10/2019,Supporting UK Business,Innovation Directorate,Albright ip,129323,"2,500.00",Not Applicable
Department for Business Energy and Industrial Strategy,Intellectual Property Office,17/10/2019,Supporting UK Business,Innovation Directorate,Ipentus Limited,IP0011,"2,500.00",Not Applicable
Department for Business Energy and Industrial Strategy,Intellectual Property Office,22/10/2019,Staff Costs,People Places & Serv Directorate,Korn Ferry Hay Group (CSL),1195044772,"2,722.56",Not Applicable
Department for Business Energy and Industrial Strategy,Intellectual Property Office,29/10/2019,Supporting UK Business,Innovation Directorate,Ouzman IP Limited,682,"2,500.00",Not Applicable
Department for Business Energy and Industrial Strategy,Intellectual Property Office,16/10/2019,Information Technology,IT Directorate,Kenson Network Engineering Limited,17841,"12,210.00",Not Applicable
Department for Business Energy and Industrial Strategy,Intellectual Property Office,03/10/2019,Miscellaneous Expenses General,IT Directorate,Responsiv Solutions Limited,RSL0754,"26,452.43",Not Applicable
Department for Business Energy and Industrial Strategy,Intellectual Property Office,03/10/2019,Pay Costs,Projects,Responsiv Solutions Limited,RSL0755,"29,981.00",Not Applicable
Department for Business Energy and Industrial Strategy,Intellectual Property Office,21/10/2019,Staff Costs,People Places & Serv Directorate,University of West of England,SN387566/1,"1,250.00",Not Applicable
Department for Business Energy and Industrial Strategy,Intellectual Property Office,01/10/2019,Supporting UK Business,Innovation Directorate,Astrum ElementOne Limited,S7352,"2,500.00",Not Applicable
Department for Business Energy and Industrial Strategy,Intellectual Property Office,15/10/2019,Supporting UK Business,Innovation Directorate,Bridle Intellectual Property Ltd,133-014,"2,500.00",Not Applicable
Department for Business Energy and Industrial Strategy,Intellectual Property Office,08/10/2019,Supporting UK Business,Innovation Directorate,Bridle Intellectual Property Ltd,133-015,"2,500.00",Not Applicable
Department for Business Energy and Industrial Strategy,Intellectual Property Office,22/10/2019,Accommodation,People Places & Serv Directorate,Rexel UK Limited,440031131,"3,301.44",Not Applicable
Department for Business Energy and Industrial Strategy,Intellectual Property Office,22/10/2019,Accommodation,People Places & Serv Directorate,Rexel UK Limited,440031132,"18,454.80",Not Applicable
Department for Business Energy and Industrial Strategy,Intellectual Property Office,24/10/2019,Information Technology,IT Directorate,proAV Limited,182604,"16,322.40",Not Applicable
Department for Business Energy and Industrial Strategy,Intellectual Property Office,02/10/2019,Information Technology,IT Directorate,Equal Experts UK Limited,INV-6744,"15,000.00",Not Applicable
Department for Business Energy and Industrial Strategy,Intellectual Property Office,24/10/2019,Marketing & Publicity,Innovation Directorate,Factiva Limited,79321713,875.77,Not Applicable
Department for Business Energy and Industrial Strategy,Intellectual Property Office,21/10/2019,Miscellaneous Expenses General,People Places & Serv Directorate,Autism Spectrum Connections Cymru,1185,725.00,Not Applicable
Department for Business Energy and Industrial Strategy,Intellectual Property Office,02/10/2019,Accommodation,People Places & Serv Directorate,Newport Wafer Fab Limited,SD00001381,"6,975.00",Not Applicable
Department for Business Energy and Industrial Strategy,Intellectual Property Office,02/10/2019,Accommodation,People Places & Serv Directorate,Newport Wafer Fab Limited,SD00001383,"11,500.00",Not Applicable
Department for Business Energy and Industrial Strategy,Intellectual Property Office,30/10/2019,Accommodation,People Places & Serv Directorate,Newport Wafer Fab Limited,SD00001455,"11,500.00",Not Applicable
Department for Business Energy and Industrial Strategy,Intellectual Property Office,30/10/2019,Accommodation,People Places & Serv Directorate,Newport Wafer Fab Limited,SD00001456,"6,975.00",Not Applicable
Department for Business Energy and Industrial Strategy,Intellectual Property Office,23/10/2019,Office Supplies,People Places & Serv Directorate,South East Drawing Office Ltd,20303,683.11,Not Applicable
Department for Business Energy and Industrial Strategy,Intellectual Property Office,24/10/2019,Office Supplies,People Places & Serv Directorate,South East Drawing Office Ltd,20390,640.97,Not Applicable
Department for Business Energy and Industrial Strategy,Intellectual Property Office,30/10/2019,Supporting UK Business,Innovation Directorate,Brabners,269552,"2,500.00",Not Applicable
Department for Business Energy and Industrial Strategy,Intellectual Property Office,08/10/2019,Telecoms,People Places & Serv Directorate,Colt Technology Services,2.0191E+12,"1,860.00",Not Applicable
Department for Business Energy and Industrial Strategy,Intellectual Property Office,31/10/2019,Accommodation,People Places & Serv Directorate,ADVANCED FIRE TECHNOLOGIES,352226,"7,684.56",Not Applicable
Department for Business Energy and Industrial Strategy,Intellectual Property Office,30/10/2019,Accommodation,People Places & Serv Directorate,Accelerate Cleaning Solutions Ltd,8244,"2,621.22",Not Applicable
Department for Business Energy and Industrial Strategy,Intellectual Property Office,01/10/2019,Supporting UK Business,Innovation Directorate,Mathys & Squire IP,374167,"2,500.00",Not Applicable
Department for Business Energy and Industrial Strategy,Intellectual Property Office,17/10/2019,Office Supplies,People Places & Serv Directorate,Blake Envelopes,SI0000641631,"6,511.20",Not Applicable
Department for Business Energy and Industrial Strategy,Intellectual Property Office,29/10/2019,Information Technology,Projects,Rocom,I3539155,"1,947.60",Not Applicable
Department for Business Energy and Industrial Strategy,Intellectual Property Office,15/10/2019,Information Technology,IT Directorate,8X8 Solutions,2499297,"1,656.01",Not Applicable
Department for Business Energy and Industrial Strategy,Intellectual Property Office,04/10/2019,Miscellaneous Expenses General,People Places & Serv Directorate,Working Families,INV-0241,"3,000.00",Not Applicable
Department for Business Energy and Industrial Strategy,Intellectual Property Office,10/10/2019,Accommodation,People Places & Serv Directorate,Brookfield Properties (UK PM) Limited,2017/608,"4,613.94",Not Applicable
Department for Business Energy and Industrial Strategy,Intellectual Property Office,16/10/2019,Accommodation,People Places & Serv Directorate,Brookfield Properties (UK PM) Limited,2017/633,"11,421.34",Not Applicable
Department for Business Energy and Industrial Strategy,Intellectual Property Office,15/10/2019,Supporting UK Business,Innovation Directorate,Sweetinburgh & Windsor Ltd,4872,"2,500.00",Not Applicable
Department for Business Energy and Industrial Strategy,Intellectual Property Office,04/10/2019,Information Technology,IT Directorate,Perago-Wales,26,"9,600.00",Not Applicable
Department for Business Energy and Industrial Strategy,Intellectual Property Office,29/10/2019,Telecoms,IT Directorate,Gamma Telecom Ltd,GA1504001,"2,098.13",Not Applicable
Department for Business Energy and Industrial Strategy,Intellectual Property Office,31/10/2019,Staff Costs,IT Directorate,UXPin Inc,114692,"1,069.98",Not Applicable
Department for Business Energy and Industrial Strategy,Intellectual Property Office,03/10/2019,Staff Costs,People Places & Serv Directorate,People Untapped Limited,INV-0776,"10,412.22",Not Applicable
Department for Business Energy and Industrial Strategy,Intellectual Property Office,22/10/2019,Staff Costs,People Places & Serv Directorate,People Untapped Limited,INV-0784,"7,934.40",Not Applicable
Department for Business Energy and Industrial Strategy,Intellectual Property Office,15/10/2019,Staff Costs,People Places & Serv Directorate,People Untapped Limited,INV-0785,"6,331.20",Not Applicable
Department for Business Energy and Industrial Strategy,Intellectual Property Office,22/10/2019,Miscellaneous Expenses General,People Places & Serv Directorate,People Untapped Limited,INV-0786,"3,978.20",Not Applicable
Department for Business Energy and Industrial Strategy,Intellectual Property Office,24/10/2019,Staff Costs,IT Directorate,True Resilience Limited,TR090,"2,316.00",Not Applicable
Department for Business Energy and Industrial Strategy,Intellectual Property Office,08/10/2019,Information Technology,Patent Directorate,Optimal Workshop Ltd,INV-3575,"4,573.42",Not Applicable
Department for Business Energy and Industrial Strategy,Intellectual Property Office,24/10/2019,Office Machinery,IT Directorate,Kyocera Document Solutions UK Limited,1170484,"2,761.92",Not Applicable
Department for Business Energy and Industrial Strategy,Intellectual Property Office,29/10/2019,Staff Costs,People Places & Serv Directorate,Tracy Mountain,22,"1,200.00",Not Applicable
Department for Business Energy and Industrial Strategy,Intellectual Property Office,31/10/2019,Staff Costs,People Places & Serv Directorate,Tracy Mountain,INVOICE0023,"1,200.00",Not Applicable
Department for Business Energy and Industrial Strategy,Intellectual Property Office,02/10/2019,Information Technology,Projects,Deloitte MCS Limited,8000796375,"33,719.40",Not Applicable
Department for Business Energy and Industrial Strategy,Intellectual Property Office,24/10/2019,Accommodation,People Places & Serv Directorate,Apex Security Engineering Ltd,ATF/9259,"3,052.80",Not Applicable
Department for Business Energy and Industrial Strategy,Intellectual Property Office,22/10/2019,Pay Costs,Patent Directorate,Alexander Mann Solutions Limited,2105797,711.88,Not Applicable
Department for Business Energy and Industrial Strategy,Intellectual Property Office,14/10/2019,Pay Costs,IT Directorate,Alexander Mann Solutions Limited,2107624,"3,790.84",Not Applicable
Department for Business Energy and Industrial Strategy,Intellectual Property Office,03/10/2019,Pay Costs,IT Directorate,Alexander Mann Solutions Limited,2107626,"6,707.52",Not Applicable
Department for Business Energy and Industrial Strategy,Intellectual Property Office,21/10/2019,Pay Costs,Projects,Alexander Mann Solutions Limited,2107634,"4,619.52",Not Applicable
Department for Business Energy and Industrial Strategy,Intellectual Property Office,02/10/2019,Pay Costs,Projects,Alexander Mann Solutions Limited,2107641,"2,930.40",Not Applicable
Department for Business Energy and Industrial Strategy,Intellectual Property Office,01/10/2019,Pay Costs,IT Directorate,Alexander Mann Solutions Limited,2107643,"8,546.11",Not Applicable
Department for Business Energy and Industrial Strategy,Intellectual Property Office,03/10/2019,Pay Costs,IT Directorate,Alexander Mann Solutions Limited,2107645,"3,207.18",Not Applicable
Department for Business Energy and Industrial Strategy,Intellectual Property Office,23/10/2019,Pay Costs,Trade Mark Directorate,Alexander Mann Solutions Limited,2107646,"3,791.48",Not Applicable
Department for Business Energy and Industrial Strategy,Intellectual Property Office,02/10/2019,Pay Costs,Finance Directorate,Alexander Mann Solutions Limited,2107648,675.34,Not Applicable
Department for Business Energy and Industrial Strategy,Intellectual Property Office,14/10/2019,Pay Costs,Patent Directorate,Alexander Mann Solutions Limited,2109516,"1,066.18",Not Applicable
Department for Business Energy and Industrial Strategy,Intellectual Property Office,04/10/2019,Pay Costs,Patent Directorate,Alexander Mann Solutions Limited,2109518,586.48,Not Applicable
Department for Business Energy and Industrial Strategy,Intellectual Property Office,04/10/2019,Pay Costs,Patent Directorate,Alexander Mann Solutions Limited,2109519,577.36,Not Applicable
Department for Business Energy and Industrial Strategy,Intellectual Property Office,04/10/2019,Pay Costs,IT Directorate,Alexander Mann Solutions Limited,2109521,"3,228.00",Not Applicable
Department for Business Energy and Industrial Strategy,Intellectual Property Office,04/10/2019,Pay Costs,IT Directorate,Alexander Mann Solutions Limited,2109522,"3,483.62",Not Applicable
Department for Business Energy and Industrial Strategy,Intellectual Property Office,07/10/2019,Pay Costs,IT Directorate,Alexander Mann Solutions Limited,2109523,"3,354.91",Not Applicable
Department for Business Energy and Industrial Strategy,Intellectual Property Office,04/10/2019,Pay Costs,Patent Directorate,Alexander Mann Solutions Limited,2109524,"1,661.83",Not Applicable
Department for Business Energy and Industrial Strategy,Intellectual Property Office,04/10/2019,Pay Costs,People Places & Serv Directorate,Alexander Mann Solutions Limited,2109525,688.67,Not Applicable
Department for Business Energy and Industrial Strategy,Intellectual Property Office,04/10/2019,Pay Costs,Patent Directorate,Alexander Mann Solutions Limited,2109526,533.87,Not Applicable
Department for Business Energy and Industrial Strategy,Intellectual Property Office,28/10/2019,Pay Costs,Projects,Alexander Mann Solutions Limited,2109527,"9,396.19",Not Applicable
Department for Business Energy and Industrial Strategy,Intellectual Property Office,10/10/2019,Pay Costs,Projects,Alexander Mann Solutions Limited,2109528,"3,723.90",Not Applicable
Department for Business Energy and Industrial Strategy,Intellectual Property Office,04/10/2019,Pay Costs,IT Directorate,Alexander Mann Solutions Limited,2109529,"2,799.20",Not Applicable
Department for Business Energy and Industrial Strategy,Intellectual Property Office,04/10/2019,Pay Costs,IT Directorate,Alexander Mann Solutions Limited,2109530,"4,926.62",Not Applicable
Department for Business Energy and Industrial Strategy,Intellectual Property Office,04/10/2019,Pay Costs,IT Directorate,Alexander Mann Solutions Limited,2109531,"2,371.68",Not Applicable
Department for Business Energy and Industrial Strategy,Intellectual Property Office,10/10/2019,Pay Costs,Projects,Alexander Mann Solutions Limited,2109532,"3,109.68",Not Applicable
Department for Business Energy and Industrial Strategy,Intellectual Property Office,14/10/2019,Pay Costs,Projects,Alexander Mann Solutions Limited,2109533,"2,382.60",Not Applicable
Department for Business Energy and Industrial Strategy,Intellectual Property Office,09/10/2019,Pay Costs,IT Directorate,Alexander Mann Solutions Limited,2109534,"2,930.40",Not Applicable
Department for Business Energy and Industrial Strategy,Intellectual Property Office,04/10/2019,Pay Costs,Patent Directorate,Alexander Mann Solutions Limited,2109535,811.90,Not Applicable
Department for Business Energy and Industrial Strategy,Intellectual Property Office,09/10/2019,Pay Costs,Projects,Alexander Mann Solutions Limited,2109536,"3,706.74",Not Applicable
Department for Business Energy and Industrial Strategy,Intellectual Property Office,22/10/2019,Pay Costs,Trade Mark Directorate,Alexander Mann Solutions Limited,2109537,657.30,Not Applicable
Department for Business Energy and Industrial Strategy,Intellectual Property Office,09/10/2019,Pay Costs,Finance Directorate,Alexander Mann Solutions Limited,2109539,693.11,Not Applicable
Department for Business Energy and Industrial Strategy,Intellectual Property Office,04/10/2019,Pay Costs,Patent Directorate,Alexander Mann Solutions Limited,2109540,582.08,Not Applicable
Department for Business Energy and Industrial Strategy,Intellectual Property Office,09/10/2019,Pay Costs,Patent Directorate,Alexander Mann Solutions Limited,2109541,605.69,Not Applicable
Department for Business Energy and Industrial Strategy,Intellectual Property Office,15/10/2019,Pay Costs,Patent Directorate,Alexander Mann Solutions Limited,2111583,520.81,Not Applicable
Department for Business Energy and Industrial Strategy,Intellectual Property Office,11/10/2019,Pay Costs,Patent Directorate,Alexander Mann Solutions Limited,2111586,577.36,Not Applicable
Department for Business Energy and Industrial Strategy,Intellectual Property Office,17/10/2019,Pay Costs,IT Directorate,Alexander Mann Solutions Limited,2111587,"3,426.47",Not Applicable
Department for Business Energy and Industrial Strategy,Intellectual Property Office,25/10/2019,Pay Costs,IT Directorate,Alexander Mann Solutions Limited,2111588,"3,353.76",Not Applicable
Department for Business Energy and Industrial Strategy,Intellectual Property Office,15/10/2019,Pay Costs,IT Directorate,Alexander Mann Solutions Limited,2111589,"3,634.27",Not Applicable
Department for Business Energy and Industrial Strategy,Intellectual Property Office,18/10/2019,Pay Costs,IT Directorate,Alexander Mann Solutions Limited,2111590,"3,448.10",Not Applicable
Department for Business Energy and Industrial Strategy,Intellectual Property Office,11/10/2019,Pay Costs,Patent Directorate,Alexander Mann Solutions Limited,2111591,886.18,Not Applicable
Department for Business Energy and Industrial Strategy,Intellectual Property Office,11/10/2019,Pay Costs,People Places & Serv Directorate,Alexander Mann Solutions Limited,2111592,688.67,Not Applicable
Department for Business Energy and Industrial Strategy,Intellectual Property Office,11/10/2019,Pay Costs,Patent Directorate,Alexander Mann Solutions Limited,2111593,594.07,Not Applicable
Department for Business Energy and Industrial Strategy,Intellectual Property Office,11/10/2019,Pay Costs,IT Directorate,Alexander Mann Solutions Limited,2111594,"1,736.52",Not Applicable
Department for Business Energy and Industrial Strategy,Intellectual Property Office,11/10/2019,Pay Costs,Projects,Alexander Mann Solutions Limited,2111595,"2,979.12",Not Applicable
Department for Business Energy and Industrial Strategy,Intellectual Property Office,14/10/2019,Pay Costs,IT Directorate,Alexander Mann Solutions Limited,2111596,"2,795.42",Not Applicable
Department for Business Energy and Industrial Strategy,Intellectual Property Office,11/10/2019,Pay Costs,IT Directorate,Alexander Mann Solutions Limited,2111597,"1,737.79",Not Applicable
Department for Business Energy and Industrial Strategy,Intellectual Property Office,11/10/2019,Pay Costs,IT Directorate,Alexander Mann Solutions Limited,2111598,"2,463.31",Not Applicable
Department for Business Energy and Industrial Strategy,Intellectual Property Office,11/10/2019,Pay Costs,IT Directorate,Alexander Mann Solutions Limited,2111599,"1,363.72",Not Applicable
Department for Business Energy and Industrial Strategy,Intellectual Property Office,14/10/2019,Pay Costs,Projects,Alexander Mann Solutions Limited,2111600,"2,369.40",Not Applicable
Department for Business Energy and Industrial Strategy,Intellectual Property Office,14/10/2019,Pay Costs,IT Directorate,Alexander Mann Solutions Limited,2111601,"2,930.40",Not Applicable
Department for Business Energy and Industrial Strategy,Intellectual Property Office,11/10/2019,Pay Costs,Patent Directorate,Alexander Mann Solutions Limited,2111602,550.93,Not Applicable
Department for Business Energy and Industrial Strategy,Intellectual Property Office,14/10/2019,Pay Costs,Projects,Alexander Mann Solutions Limited,2111603,"3,622.86",Not Applicable
Department for Business Energy and Industrial Strategy,Intellectual Property Office,14/10/2019,Pay Costs,Projects,Alexander Mann Solutions Limited,2111604,"3,666.77",Not Applicable
Department for Business Energy and Industrial Strategy,Intellectual Property Office,14/10/2019,Pay Costs,Trade Mark Directorate,Alexander Mann Solutions Limited,2111607,652.96,Not Applicable
Department for Business Energy and Industrial Strategy,Intellectual Property Office,14/10/2019,Pay Costs,Patent Directorate,Alexander Mann Solutions Limited,2111611,619.96,Not Applicable
Department for Business Energy and Industrial Strategy,Intellectual Property Office,18/10/2019,Pay Costs,Patent Directorate,Alexander Mann Solutions Limited,2113529,693.11,Not Applicable
Department for Business Energy and Industrial Strategy,Intellectual Property Office,18/10/2019,Pay Costs,IT Directorate,Alexander Mann Solutions Limited,2113531,"3,511.87",Not Applicable
Department for Business Energy and Industrial Strategy,Intellectual Property Office,18/10/2019,Pay Costs,People Places & Serv Directorate,Alexander Mann Solutions Limited,2113533,688.67,Not Applicable
Department for Business Energy and Industrial Strategy,Intellectual Property Office,18/10/2019,Pay Costs,Patent Directorate,Alexander Mann Solutions Limited,2113534,594.07,Not Applicable
Department for Business Energy and Industrial Strategy,Intellectual Property Office,18/10/2019,Pay Costs,IT Directorate,Alexander Mann Solutions Limited,2113535,844.27,Not Applicable
Department for Business Energy and Industrial Strategy,Intellectual Property Office,18/10/2019,Pay Costs,Projects,Alexander Mann Solutions Limited,2113536,"3,723.90",Not Applicable
Department for Business Energy and Industrial Strategy,Intellectual Property Office,18/10/2019,Pay Costs,IT Directorate,Alexander Mann Solutions Limited,2113537,"2,463.31",Not Applicable
Department for Business Energy and Industrial Strategy,Intellectual Property Office,18/10/2019,Pay Costs,IT Directorate,Alexander Mann Solutions Limited,2113538,"2,231.16",Not Applicable
Department for Business Energy and Industrial Strategy,Intellectual Property Office,18/10/2019,Pay Costs,Projects,Alexander Mann Solutions Limited,2113539,"6,219.36",Not Applicable
Department for Business Energy and Industrial Strategy,Intellectual Property Office,18/10/2019,Pay Costs,Projects,Alexander Mann Solutions Limited,2113540,"2,224.20",Not Applicable
Department for Business Energy and Industrial Strategy,Intellectual Property Office,18/10/2019,Pay Costs,IT Directorate,Alexander Mann Solutions Limited,2113541,"2,930.40",Not Applicable
Department for Business Energy and Industrial Strategy,Intellectual Property Office,18/10/2019,Pay Costs,Projects,Alexander Mann Solutions Limited,2113542,"5,329.63",Not Applicable
Department for Business Energy and Industrial Strategy,Intellectual Property Office,18/10/2019,Pay Costs,Patent Directorate,Alexander Mann Solutions Limited,2113543,"1,133.68",Not Applicable
Department for Business Energy and Industrial Strategy,Intellectual Property Office,21/10/2019,Pay Costs,Projects,Alexander Mann Solutions Limited,2113544,"3,387.01",Not Applicable
Department for Business Energy and Industrial Strategy,Intellectual Property Office,18/10/2019,Pay Costs,IT Directorate,Alexander Mann Solutions Limited,2113546,"2,864.93",Not Applicable
Department for Business Energy and Industrial Strategy,Intellectual Property Office,18/10/2019,Pay Costs,Patent Directorate,Alexander Mann Solutions Limited,2113547,598.09,Not Applicable
Department for Business Energy and Industrial Strategy,Intellectual Property Office,18/10/2019,Pay Costs,Finance Directorate,Alexander Mann Solutions Limited,2113548,"1,359.56",Not Applicable
Department for Business Energy and Industrial Strategy,Intellectual Property Office,18/10/2019,Pay Costs,Trade Mark Directorate,Alexander Mann Solutions Limited,2113550,522.36,Not Applicable
Department for Business Energy and Industrial Strategy,Intellectual Property Office,18/10/2019,Pay Costs,Patent Directorate,Alexander Mann Solutions Limited,2113551,582.08,Not Applicable
Department for Business Energy and Industrial Strategy,Intellectual Property Office,18/10/2019,Pay Costs,Patent Directorate,Alexander Mann Solutions Limited,2113552,666.46,Not Applicable
Department for Business Energy and Industrial Strategy,Intellectual Property Office,18/10/2019,Pay Costs,Patent Directorate,Alexander Mann Solutions Limited,2113554,"1,332.91",Not Applicable
Department for Business Energy and Industrial Strategy,Intellectual Property Office,25/10/2019,Pay Costs,Patent Directorate,Alexander Mann Solutions Limited,2115694,836.17,Not Applicable
Department for Business Energy and Industrial Strategy,Intellectual Property Office,25/10/2019,Pay Costs,IT Directorate,Alexander Mann Solutions Limited,2115696,"2,968.22",Not Applicable
Department for Business Energy and Industrial Strategy,Intellectual Property Office,25/10/2019,Pay Costs,IT Directorate,Alexander Mann Solutions Limited,2115697,"6,707.52",Not Applicable
Department for Business Energy and Industrial Strategy,Intellectual Property Office,25/10/2019,Pay Costs,IT Directorate,Alexander Mann Solutions Limited,2115698,"3,530.70",Not Applicable
Department for Business Energy and Industrial Strategy,Intellectual Property Office,25/10/2019,Pay Costs,IT Directorate,Alexander Mann Solutions Limited,2115699,"3,494.70",Not Applicable
Department for Business Energy and Industrial Strategy,Intellectual Property Office,25/10/2019,Pay Costs,Patent Directorate,Alexander Mann Solutions Limited,2115700,524.28,Not Applicable
Department for Business Energy and Industrial Strategy,Intellectual Property Office,25/10/2019,Pay Costs,Patent Directorate,Alexander Mann Solutions Limited,2115702,594.07,Not Applicable
Department for Business Energy and Industrial Strategy,Intellectual Property Office,25/10/2019,Pay Costs,Projects,Alexander Mann Solutions Limited,2115704,"5,866.37",Not Applicable
Department for Business Energy and Industrial Strategy,Intellectual Property Office,25/10/2019,Pay Costs,Projects,Alexander Mann Solutions Limited,2115705,"3,723.90",Not Applicable
Department for Business Energy and Industrial Strategy,Intellectual Property Office,28/10/2019,Pay Costs,IT Directorate,Alexander Mann Solutions Limited,2115706,"2,312.39",Not Applicable
Department for Business Energy and Industrial Strategy,Intellectual Property Office,28/10/2019,Pay Costs,Projects,Alexander Mann Solutions Limited,2115707,"3,109.68",Not Applicable
Department for Business Energy and Industrial Strategy,Intellectual Property Office,28/10/2019,Pay Costs,Projects,Alexander Mann Solutions Limited,2115708,"2,046.00",Not Applicable
Department for Business Energy and Industrial Strategy,Intellectual Property Office,28/10/2019,Pay Costs,IT Directorate,Alexander Mann Solutions Limited,2115709,"2,930.40",Not Applicable
Department for Business Energy and Industrial Strategy,Intellectual Property Office,28/10/2019,Pay Costs,Patent Directorate,Alexander Mann Solutions Limited,2115710,533.16,Not Applicable
Department for Business Energy and Industrial Strategy,Intellectual Property Office,28/10/2019,Pay Costs,Projects,Alexander Mann Solutions Limited,2115711,"3,347.16",Not Applicable
Department for Business Energy and Industrial Strategy,Intellectual Property Office,28/10/2019,Pay Costs,IT Directorate,Alexander Mann Solutions Limited,2115712,"8,180.40",Not Applicable
Department for Business Energy and Industrial Strategy,Intellectual Property Office,31/10/2019,Pay Costs,Projects,Alexander Mann Solutions Limited,2115713,"7,245.72",Not Applicable
Department for Business Energy and Industrial Strategy,Intellectual Property Office,28/10/2019,Pay Costs,Projects,Alexander Mann Solutions Limited,2115714,"3,456.96",Not Applicable
Department for Business Energy and Industrial Strategy,Intellectual Property Office,28/10/2019,Pay Costs,IT Directorate,Alexander Mann Solutions Limited,2115716,"2,897.42",Not Applicable
Department for Business Energy and Industrial Strategy,Intellectual Property Office,28/10/2019,Pay Costs,Finance Directorate,Alexander Mann Solutions Limited,2115717,688.67,Not Applicable
Department for Business Energy and Industrial Strategy,Intellectual Property Office,28/10/2019,Pay Costs,Trade Mark Directorate,Alexander Mann Solutions Limited,2115718,652.96,Not Applicable
Department for Business Energy and Industrial Strategy,Intellectual Property Office,28/10/2019,Pay Costs,Patent Directorate,Alexander Mann Solutions Limited,2115719,578.15,Not Applicable
Department for Business Energy and Industrial Strategy,Intellectual Property Office,28/10/2019,Pay Costs,Patent Directorate,Alexander Mann Solutions Limited,2115720,533.16,Not Applicable
Department for Business Energy and Industrial Strategy,Intellectual Property Office,28/10/2019,Pay Costs,Patent Directorate,Alexander Mann Solutions Limited,2115722,"1,999.37",Not Applicable
Department for Business Energy and Industrial Strategy,Intellectual Property Office,28/10/2019,Pay Costs,Patent Directorate,Alexander Mann Solutions Limited,2115723,670.90,Not Applicable
Department for Business Energy and Industrial Strategy,Intellectual Property Office,28/10/2019,Pay Costs,Patent Directorate,Alexander Mann Solutions Limited,2115724,582.08,Not Applicable
Department for Business Energy and Industrial Strategy,Intellectual Property Office,28/10/2019,Pay Costs,Patent Directorate,Alexander Mann Solutions Limited,2115725,569.99,Not Applicable
Department for Business Energy and Industrial Strategy,Intellectual Property Office,04/10/2019,Pay Costs,Patent Directorate,Alexander Mann Solutions Limited,21947,-710.88,Not Applicable
Department for Business Energy and Industrial Strategy,Intellectual Property Office,18/10/2019,Pay Costs,Patent Directorate,Alexander Mann Solutions Limited,21982,-550.93,Not Applicable
Department for Business Energy and Industrial Strategy,Intellectual Property Office,23/10/2019,Pay Costs,Trade Mark Directorate,Alexander Mann Solutions Limited,21983,"-1,310.26",Not Applicable
Department for Business Energy and Industrial Strategy,Intellectual Property Office,02/10/2019,Accommodation,People Places & Serv Directorate,CBRE Managed Services Ltd,S00709741,"1,892.35",Not Applicable
Department for Business Energy and Industrial Strategy,Intellectual Property Office,02/10/2019,Accommodation,People Places & Serv Directorate,CBRE Managed Services Ltd,S00709742,"1,892.35",Not Applicable
Department for Business Energy and Industrial Strategy,Intellectual Property Office,02/10/2019,Accommodation,People Places & Serv Directorate,CBRE Managed Services Ltd,S00709744,"1,892.35",Not Applicable
Department for Business Energy and Industrial Strategy,Intellectual Property Office,02/10/2019,Accommodation,People Places & Serv Directorate,CBRE Managed Services Ltd,S00709747,"1,892.35",Not Applicable
Department for Business Energy and Industrial Strategy,Intellectual Property Office,17/10/2019,Supporting UK Business,Innovation Directorate,Hindles Ltd,191007,"2,500.00",Not Applicable
Department for Business Energy and Industrial Strategy,Intellectual Property Office,03/10/2019,Staff Costs,People Places & Serv Directorate,Eliesha Training Ltd,20900,"1,068.00",Not Applicable
Department for Business Energy and Industrial Strategy,Intellectual Property Office,29/10/2019,Staff Costs,People Places & Serv Directorate,Eliesha Training Ltd,20962,"1,068.00",Not Applicable
Department for Business Energy and Industrial Strategy,Intellectual Property Office,29/10/2019,Staff Costs,People Places & Serv Directorate,Eliesha Training Ltd,20963,"1,548.00",Not Applicable
Department for Business Energy and Industrial Strategy,Intellectual Property Office,29/10/2019,Staff Costs,People Places & Serv Directorate,Eliesha Training Ltd,20964,"5,472.00",Not Applicable
Department for Business Energy and Industrial Strategy,Intellectual Property Office,29/10/2019,Staff Costs,People Places & Serv Directorate,Eliesha Training Ltd,20965,"2,136.00",Not Applicable
Department for Business Energy and Industrial Strategy,Intellectual Property Office,04/10/2019,Staff Costs,Copyright and Enforcement Directorate,ALAN CRONIN,3719,"1,494.80",Not Applicable
Department for Business Energy and Industrial Strategy,Intellectual Property Office,30/10/2019,Staff Costs,People Places & Serv Directorate,Vanguard Consulting Ltd,10673,"1,920.00",Not Applicable
Department for Business Energy and Industrial Strategy,Intellectual Property Office,31/10/2019,Miscellaneous Expenses General,International Policy Directorate,Eldora SA,2019-265,539.36,Not Applicable
Department for Business Energy and Industrial Strategy,Intellectual Property Office,03/10/2019,Pay Costs,Projects,SOLOS Consultants Ltd,46218,"4,195.32",Not Applicable
Department for Business Energy and Industrial Strategy,Intellectual Property Office,09/10/2019,Pay Costs,IT Directorate,SOLOS Consultants Ltd,46219,"2,700.00",Not Applicable
Department for Business Energy and Industrial Strategy,Intellectual Property Office,10/10/2019,Pay Costs,Projects,SOLOS Consultants Ltd,46307,"4,195.32",Not Applicable
Department for Business Energy and Industrial Strategy,Intellectual Property Office,10/10/2019,Pay Costs,IT Directorate,SOLOS Consultants Ltd,46308,"3,000.00",Not Applicable
Department for Business Energy and Industrial Strategy,Intellectual Property Office,21/10/2019,Pay Costs,Projects,SOLOS Consultants Ltd,46366,"4,195.32",Not Applicable
Department for Business Energy and Industrial Strategy,Intellectual Property Office,17/10/2019,Pay Costs,IT Directorate,SOLOS Consultants Ltd,46367,"3,000.00",Not Applicable
Department for Business Energy and Industrial Strategy,Intellectual Property Office,25/10/2019,Pay Costs,Projects,SOLOS Consultants Ltd,46422,"4,195.32",Not Applicable
Department for Business Energy and Industrial Strategy,Intellectual Property Office,25/10/2019,Pay Costs,IT Directorate,SOLOS Consultants Ltd,46423,"3,000.00",Not Applicable
Department for Business Energy and Industrial Strategy,Intellectual Property Office,31/10/2019,Pay Costs,Projects,SOLOS Consultants Ltd,46481,"4,195.32",Not Applicable
Department for Business Energy and Industrial Strategy,Intellectual Property Office,31/10/2019,Pay Costs,IT Directorate,SOLOS Consultants Ltd,46482,"3,000.00",Not Applicable
Department for Business Energy and Industrial Strategy,Intellectual Property Office,25/10/2019,Miscellaneous Expenses General,IT Directorate,Empyrean Digital Ltd,EMP-200,"2,700.00",Not Applicable
Department for Business Energy and Industrial Strategy,Intellectual Property Office,25/10/2019,Miscellaneous Expenses General,IT Directorate,Empyrean Digital Ltd,EMP-201,"14,400.00",Not Applicable
Department for Business Energy and Industrial Strategy,Intellectual Property Office,01/10/2019,Pay Costs,Projects,Empyrean Digital Ltd,EMP-203,"1,170.00",Not Applicable
Department for Business Energy and Industrial Strategy,Intellectual Property Office,03/10/2019,Miscellaneous Expenses General,IT Directorate,Empyrean Digital Ltd,EMP-205,"7,020.00",Not Applicable
Department for Business Energy and Industrial Strategy,Intellectual Property Office,29/10/2019,Information Technology,IT Directorate,Autodesk Ltd.,9202231796,"1,704.00",Not Applicable
Department for Business Energy and Industrial Strategy,Intellectual Property Office,25/10/2019,Accommodation,People Places & Serv Directorate,Government Property Agency,00000001/1312,"143,770.13",Not Applicable
Department for Business Energy and Industrial Strategy,Intellectual Property Office,22/10/2019,Network and infrastructure H/W,Projects,The Intellectual Property,H57720191024eqialesie,-170.00,Not Applicable
Department for Business Energy and Industrial Strategy,Intellectual Property Office,22/10/2019,Network and infrastructure H/W,Projects,The Intellectual Property,H57720191024fmvwfydmc,-50.00,Not Applicable
Department for Business Energy and Industrial Strategy,Intellectual Property Office,22/10/2019,Network and infrastructure H/W,Projects,The Intellectual Property,H57720191024hwpnwtbve,-170.00,Not Applicable
Department for Business Energy and Industrial Strategy,Intellectual Property Office,22/10/2019,Network and infrastructure H/W,Projects,The Intellectual Property,H57720191024thnofhsdk,-50.00,Not Applicable
Department for Business Energy and Industrial Strategy,Intellectual Property Office,20/10/2019,Network and infrastructure H/W,Trade Mark Directorate,The Intellectual Property,H57720191022hlmdrpdnx,50.00,Not Applicable
Department for Business Energy and Industrial Strategy,Intellectual Property Office,20/10/2019,Network and infrastructure H/W,Projects,The Intellectual Property,H57720191022otnctybfl,170.00,Not Applicable
Department for Business Energy and Industrial Strategy,Intellectual Property Office,12/10/2019,Network and infrastructure H/W,Trade Mark Directorate,The Intellectual Property,H57720191015mgemjhpdw,50.00,Not Applicable
Department for Business Energy and Industrial Strategy,Intellectual Property Office,12/10/2019,Network and infrastructure H/W,Projects,The Intellectual Property,H57720191015rhvobqerp,170.00,Not Applicable
Department for Business Energy and Industrial Strategy,Intellectual Property Office,18/10/2019,Other,People Places & Serv Directorate,Www.Labelsandtags.Co.U,H57720191022cmuebnnfw,28.20,Not Applicable
Department for Business Energy and Industrial Strategy,Intellectual Property Office,18/10/2019,Network and infrastructure H/W,Projects,Comms Express Ltd,H57720191022msztfvqnx,324.65,Not Applicable
Department for Business Energy and Industrial Strategy,Intellectual Property Office,18/10/2019,Other,People Places & Serv Directorate,Www.Labelsandtags.Co.U,H57720191022ouofnsroz,-28.20,Not Applicable
Department for Business Energy and Industrial Strategy,Intellectual Property Office,18/10/2019,Other,People Places & Serv Directorate,Www.Labelsandtags.Co.U,H57720191022valruwvyp,28.20,Not Applicable
Department for Business Energy and Industrial Strategy,Intellectual Property Office,17/10/2019,Perpetual Licences,IT Directorate,Atlassian,H57720191019tydwtfgrb,791.10,Not Applicable
Department for Business Energy and Industrial Strategy,Intellectual Property Office,15/10/2019,Network and infrastructure H/W,Projects,Comms Express Ltd,H57720191018snjnpijtp,810.50,Not Applicable
Department for Business Energy and Industrial Strategy,Intellectual Property Office,04/10/2019,Perpetual Licences,IT Directorate,Atlassian,H57720191008nfaccgysp,839.53,Not Applicable
Department for Business Energy and Industrial Strategy,Intellectual Property Office,15/10/2019,Office Stationery,People Places & Serv Directorate,Rajapack Limited T/A W,H57720191017idxxckjci,205.20,Not Applicable
Department for Business Energy and Industrial Strategy,Intellectual Property Office,15/10/2019,Entertainment,People Places & Serv Directorate,Subway,H57720191017igbfhccsj,18.94,Not Applicable
Department for Business Energy and Industrial Strategy,Intellectual Property Office,13/10/2019,Career Development Services,Finance Directorate,Amznmktplace Amazon.Co.Uk,H57720191016cbkujepwa,94.40,Not Applicable
Department for Business Energy and Industrial Strategy,Intellectual Property Office,14/10/2019,Career Development Services,Finance Directorate,Amznmktplace Amazon.Co.Uk,H57720191016hvgpkhoxk,-7.81,Not Applicable
Department for Business Energy and Industrial Strategy,Intellectual Property Office,10/10/2019,Career Development Services,Finance Directorate,Eb *engaging And Inspi,H57720191012cessniusn,15.41,Not Applicable
Department for Business Energy and Industrial Strategy,Intellectual Property Office,01/10/2019,Entertainment,IT Directorate,Subway,H57720191003unvsphrjj,54.00,Not Applicable
Department for Business Energy and Industrial Strategy,Intellectual Property Office,30/09/2019,Education Campaign,Innovation Directorate,Dropbox 58tm42swq54n,H57720191002qmusocygp,95.88,Not Applicable
Department for Business Energy and Industrial Strategy,Intellectual Property Office,23/10/2019,Office Stationery,People Places & Serv Directorate,Amznmktplace,H57720191025nriyevkkp,32.00,Not Applicable
Department for Business Energy and Industrial Strategy,Intellectual Property Office,22/10/2019,Office Stationery,People Places & Serv Directorate,Amz*linno.,H57720191024eolperjci,-21.99,Not Applicable
Department for Business Energy and Industrial Strategy,Intellectual Property Office,14/10/2019,Office Stationery,People Places & Serv Directorate,Wm Morrisons Store,H57720191016sxkynfzsb,13.65,Not Applicable
Department for Business Energy and Industrial Strategy,Intellectual Property Office,08/10/2019,Office Stationery,People Places & Serv Directorate,My.Morrisons.Com,H57720191010unihgisok,20.00,Not Applicable
Department for Business Energy and Industrial Strategy,Intellectual Property Office,03/10/2019,Office Stationery,People Places & Serv Directorate,Amznmktplace,H57720191005exeghlbou,50.96,Not Applicable
Department for Business Energy and Industrial Strategy,Intellectual Property Office,15/10/2019,Office Stationery,People Places & Serv Directorate,Amznmktplace,H57720191017bfrtkdwhr,223.39,Not Applicable
Department for Business Energy and Industrial Strategy,Intellectual Property Office,14/10/2019,Office Stationery,People Places & Serv Directorate,Amazon.Co.Uk,H57720191016ugrtfrhmg,162.48,Not Applicable
Department for Business Energy and Industrial Strategy,Intellectual Property Office,10/10/2019,Office Stationery,People Places & Serv Directorate,Uk Test Instruments Lt,H57720191012gtddomgcr,720.00,Not Applicable
Department for Business Energy and Industrial Strategy,Intellectual Property Office,09/10/2019,Office Stationery,People Places & Serv Directorate,Www.Firesealsdirect.Com,H57720191011vktplpooz,196.98,Not Applicable
Department for Business Energy and Industrial Strategy,Intellectual Property Office,07/10/2019,Office Stationery,People Places & Serv Directorate,Total Id Ltd,H57720191009xvtszffda,175.45,Not Applicable
Department for Business Energy and Industrial Strategy,Intellectual Property Office,01/10/2019,Office Stationery,People Places & Serv Directorate,Paypro Software,H57720191004opxlyngmy,36.23,Not Applicable
Department for Business Energy and Industrial Strategy,Intellectual Property Office,01/10/2019,Office Stationery,People Places & Serv Directorate,Paypro Software,H57720191004uxkjlomrr,71.23,Not Applicable
Department for Business Energy and Industrial Strategy,Intellectual Property Office,30/09/2019,Office Stationery,People Places & Serv Directorate,Www.Firesealsdirect.Com,H57720191002hhfubaqgy,107.58,Not Applicable
Department for Business Energy and Industrial Strategy,Intellectual Property Office,04/10/2019,Entertainment,Finance Directorate,Amznmktplace Amazon.Co.Uk,H57720191008difggfjmm,52.86,Not Applicable
Department for Business Energy and Industrial Strategy,Intellectual Property Office,09/10/2019,Office Stationery,People Places & Serv Directorate,Floral Image Sw,H57720191011ajfmkojvv,51.95,Not Applicable
Department for Business Energy and Industrial Strategy,Intellectual Property Office,09/10/2019,Office Stationery,People Places & Serv Directorate,Www.Ofcom.Org.Uk,H57720191011ajyfvovxy,100.00,Not Applicable
Department for Business Energy and Industrial Strategy,Intellectual Property Office,07/10/2019,Office Stationery,People Places & Serv Directorate,Amznmktplace,H57720191009ydswtvvre,353.50,Not Applicable
Department for Business Energy and Industrial Strategy,Intellectual Property Office,02/10/2019,Office Stationery,People Places & Serv Directorate,Office Monster,H57720191004exdmdvfmg,292.56,Not Applicable
Department for Business Energy and Industrial Strategy,Intellectual Property Office,30/10/2019,Career Development Services,People Places & Serv Directorate,E-Reward.Co.Uk Ltd,H57720191101pxybkfhgc,618.00,Not Applicable
Department for Business Energy and Industrial Strategy,Intellectual Property Office,15/10/2019,Career Development Services,People Places & Serv Directorate,Tesco Store 2931,H57720191017bvztewffm,5.88,Not Applicable
Department for Business Energy and Industrial Strategy,Intellectual Property Office,14/10/2019,Career Development Services,People Places & Serv Directorate,Tesco-Stores 6225,H57720191016dedokcqox,12.00,Not Applicable
Department for Business Energy and Industrial Strategy,Intellectual Property Office,14/10/2019,Seminars and Confereces,People Places & Serv Directorate,Tesco-Stores 6225,H57720191016zvhtzkrho,6.00,Not Applicable
Department for Business Energy and Industrial Strategy,Intellectual Property Office,10/10/2019,Career Development Services,People Places & Serv Directorate,Amazon.Co.Uk,H57720191015gmvwsuvio,10.19,Not Applicable
Department for Business Energy and Industrial Strategy,Intellectual Property Office,11/10/2019,Career Development Services,People Places & Serv Directorate,Harvard,H57720191012jjybohdvl,180.00,Not Applicable
Department for Business Energy and Industrial Strategy,Intellectual Property Office,08/10/2019,Seminars and Confereces,People Places & Serv Directorate,Tesco-Stores 6225,H57720191010onmwsemji,8.98,Not Applicable
Department for Business Energy and Industrial Strategy,Intellectual Property Office,08/10/2019,Seminars and Confereces,People Places & Serv Directorate,Marks&spencer Plc,H57720191010oynhkyzpp,462.59,Not Applicable
Department for Business Energy and Industrial Strategy,Intellectual Property Office,07/10/2019,Eyecare,People Places & Serv Directorate,Specsaversevougb-,H57720191009lsroplioq,680.00,Not Applicable
Department for Business Energy and Industrial Strategy,Intellectual Property Office,17/10/2019,Office Stationery,People Places & Serv Directorate,Amznmktplace Amazon.Co.Uk,H57720191022bxjvtuvyf,119.21,Not Applicable
Department for Business Energy and Industrial Strategy,Intellectual Property Office,24/10/2019,Network and infrastructure H/W,IT Directorate,Amazon.Co.Uk,H57720191027kqkvmjoke,39.99,Not Applicable
Department for Business Energy and Industrial Strategy,Intellectual Property Office,24/10/2019,Perpetual Licences,IT Directorate,Www.Meetingzone.Com,H57720191027qhnhxsgfb,86.12,Not Applicable
Department for Business Energy and Industrial Strategy,Intellectual Property Office,21/10/2019,Network and infrastructure H/W,IT Directorate,Amznmktplace Amazon.Co.Uk,H57720191023jojctgdww,-440.00,Not Applicable
Department for Business Energy and Industrial Strategy,Intellectual Property Office,21/10/2019,Network and infrastructure H/W,IT Directorate,Amznmktplace Amazon.Co.Uk,H57720191023vhluovebu,-10.00,Not Applicable
Department for Business Energy and Industrial Strategy,Intellectual Property Office,14/10/2019,Network and infrastructure H/W,IT Directorate,Amznmktplace,H57720191016gswjwqhhg,837.84,Not Applicable
Department for Business Energy and Industrial Strategy,Intellectual Property Office,07/10/2019,Network and infrastructure H/W,IT Directorate,Amznmktplace Amazon.Co.Uk,H57720191009tsjpufjhj,440.00,Not Applicable
Department for Business Energy and Industrial Strategy,Intellectual Property Office,03/10/2019,Network and infrastructure H/W,IT Directorate,Amznmktplace,H57720191005xexkaweig,5.49,Not Applicable
Department for Business Energy and Industrial Strategy,Intellectual Property Office,01/10/2019,Software Maintenance,IT Directorate,Apple.Com/Uk,H57720191003jhaqjvkcf,152.44,Not Applicable
Department for Business Energy and Industrial Strategy,Intellectual Property Office,01/10/2019,Network and infrastructure H/W,IT Directorate,Amznmktplace,H57720191003vpdrijndl,87.50,Not Applicable
Department for Business Energy and Industrial Strategy,Intellectual Property Office,29/09/2019,Network and infrastructure H/W,IT Directorate,Amznmktplace Amazon.Co.Uk,H57720191002wjfrfmpgp,29.98,Not Applicable
Department for Business Energy and Industrial Strategy,Intellectual Property Office,29/10/2019,Seminars and Confereces,Copyright and Enforcement Directorate,Www.Cjsevents.Co.Uk,H57720191031jsxmxeqqp,470.00,Not Applicable
Department for Business Energy and Industrial Strategy,Intellectual Property Office,29/10/2019,Seminars and Confereces,Copyright and Enforcement Directorate,Www.Cjsevents.Co.Uk,H57720191031xwgggmjxx,470.00,Not Applicable
Department for Business Energy and Industrial Strategy,Intellectual Property Office,30/09/2019,Entertainment,Copyright and Enforcement Directorate,Www.Pret.Com,H57720191002tisaisbgm,43.92,Not Applicable
Department for Business Energy and Industrial Strategy,Intellectual Property Office,30/10/2019,Overseas Patent Specifications,Patent Directorate,Elsevier,H57720191101isktxlyyp,34.58,Not Applicable
Department for Business Energy and Industrial Strategy,Intellectual Property Office,29/10/2019,Overseas Patent Specifications,Patent Directorate,Elsevier,H57720191031umkjfbhyk,38.55,Not Applicable
Department for Business Energy and Industrial Strategy,Intellectual Property Office,27/09/2019,Books,Innovation Directorate,Cambridge Univeristy Pres,H57720191002buzjqefdj,43.50,Not Applicable
Department for Business Energy and Industrial Strategy,Intellectual Property Office,30/10/2019,Placement Fees,Patent Directorate,Afbe-Uk,H57720191101rmbcchpuo,300.00,Not Applicable
Department for Business Energy and Industrial Strategy,Intellectual Property Office,28/10/2019,Placement Fees,Patent Directorate,Monster Worldwide Limi,H57720191030gwhtoqccp,156.00,Not Applicable
Department for Business Energy and Industrial Strategy,Intellectual Property Office,28/10/2019,Placement Fees,Patent Directorate,Www.Totaljobs.Com,H57720191030uebviluzm,88.80,Not Applicable
Department for Business Energy and Industrial Strategy,Intellectual Property Office,25/10/2019,Placement Fees,Patent Directorate,Www.Totaljobs.Com,H57720191029vrgdhtnbr,738.00,Not Applicable
Department for Business Energy and Industrial Strategy,Intellectual Property Office,10/10/2019,Placement Fees,Patent Directorate,Swansea Uni - Finance 2,H57720191012uccbclors,540.00,Not Applicable
Department for Business Energy and Industrial Strategy,Intellectual Property Office,16/10/2019,Books,IT Directorate,Amazon.Co.Uk,H57720191019xtkbiidsk,78.17,Not Applicable
Department for Business Energy and Industrial Strategy,Intellectual Property Office,22/10/2019,CIMS Printing,Patent Directorate,The Intellectual Property,H57720191024txnpvomcf,-20.00,Not Applicable
Department for Business Energy and Industrial Strategy,Intellectual Property Office,20/10/2019,CIMS Printing,Patent Directorate,The Intellectual Property,H57720191022vyxovfysi,20.00,Not Applicable
Department for Business Energy and Industrial Strategy,Intellectual Property Office,29/10/2019,Education Campaign,Innovation Directorate,Eb *women In Pr Cymru-,H57720191031kewvbunyl,38.32,Not Applicable
Department for Business Energy and Industrial Strategy,Intellectual Property Office,29/10/2019,Education Campaign,Innovation Directorate,Eb *women In Pr Cymru-,H57720191031woklrunbc,38.32,Not Applicable
Department for Business Energy and Industrial Strategy,Intellectual Property Office,24/10/2019,Advertising Distribution,Innovation Directorate,The Range,H57720191027fjxjusabz,8.97,Not Applicable
Department for Business Energy and Industrial Strategy,Intellectual Property Office,23/10/2019,Advertising Distribution,Innovation Directorate,Sq *worldskills Uk,H57720191025qwlbggipt,327.60,Not Applicable
Department for Business Energy and Industrial Strategy,Intellectual Property Office,19/10/2019,Advertising Distribution,Innovation Directorate,Ges Limited,H57720191022pyujnjfqy,606.00,Not Applicable
Department for Business Energy and Industrial Strategy,Intellectual Property Office,14/10/2019,Books,Trade Mark Directorate,The Intellectual Property,H57720191016gtlhjmfpi,-170.00,Not Applicable
Department for Business Energy and Industrial Strategy,Intellectual Property Office,14/10/2019,Books,Trade Mark Directorate,The Intellectual Property,H57720191016opjkguuxw,-170.00,Not Applicable
Department for Business Energy and Industrial Strategy,Intellectual Property Office,14/10/2019,Books,Trade Mark Directorate,The Intellectual Property,H57720191016zeobvzbsi,-50.00,Not Applicable
Department for Business Energy and Industrial Strategy,Intellectual Property Office,06/10/2019,Books,Trade Mark Directorate,The Intellectual Property,H57720191008ggnuknenb,170.00,Not Applicable
Department for Business Energy and Industrial Strategy,Intellectual Property Office,06/10/2019,Books,Trade Mark Directorate,The Intellectual Property,H57720191008hgoxdlgbl,170.00,Not Applicable
Department for Business Energy and Industrial Strategy,Intellectual Property Office,06/10/2019,Books,Trade Mark Directorate,The Intellectual Property,H57720191008rcqikzklz,50.00,Not Applicable
Department for Business Energy and Industrial Strategy,Intellectual Property Office,28/10/2019,Office Stationery,People Places & Serv Directorate,Healthy Workstations Ltd,H57720191031ivyyxjihd,958.68,Not Applicable
Department for Business Energy and Industrial Strategy,Intellectual Property Office,24/10/2019,Office Stationery,People Places & Serv Directorate,Www.Insighthealthscreenin,H57720191027jjmfzfmmv,54.00,Not Applicable
Department for Business Energy and Industrial Strategy,Intellectual Property Office,18/10/2019,Office Stationery,People Places & Serv Directorate,Floral Image Sussex,H57720191022lqlrobrri,51.95,Not Applicable
Department for Business Energy and Industrial Strategy,Intellectual Property Office,17/10/2019,Office Stationery,People Places & Serv Directorate,Amznmktplace,H57720191019lmgtnplxn,44.89,Not Applicable
Department for Business Energy and Industrial Strategy,Intellectual Property Office,03/10/2019,Office Stationery,People Places & Serv Directorate,South Wales Suppliers,H57720191005ehmybjtwc,153.60,Not Applicable
Department for Business Energy and Industrial Strategy,Intellectual Property Office,03/10/2019,Office Stationery,People Places & Serv Directorate,Caerphilly Cbc Tel Pay,H57720191005vdueuxvdw,20.00,Not Applicable
Department for Business Energy and Industrial Strategy,Intellectual Property Office,30/09/2019,Office Stationery,People Places & Serv Directorate,Posturite Ltd,H57720191002gmdcwvcou,19.19,Not Applicable
Department for Business Energy and Industrial Strategy,Intellectual Property Office,04/10/2019,Minor Works-Goods,People Places & Serv Directorate,Screwfix Direct,H57720191008hyvvrjmsj,13.98,Not Applicable
Department for Business Energy and Industrial Strategy,Intellectual Property Office,21/10/2019,Office Stationery,People Places & Serv Directorate,Sjasuplies,H57720191023dmlxcukgd,253.68,Not Applicable
Department for Business Energy and Industrial Strategy,Intellectual Property Office,15/10/2019,Office Stationery,People Places & Serv Directorate,Boardsdirect.Co.Uk,H57720191017pbmrmygwf,237.30,Not Applicable
Department for Business Energy and Industrial Strategy,Intellectual Property Office,13/10/2019,Office Stationery,People Places & Serv Directorate,Amznmktplace,H57720191015ypyufauun,20.48,Not Applicable
Department for Business Energy and Industrial Strategy,Intellectual Property Office,30/09/2019,Career Development Services,People Places & Serv Directorate,Asda Superstore 4928,H57720191002tgixkzbmy,36.40,Not Applicable
